[Event "28th Hit Open-A 2024"]
[Site "Nova Gorica"]
[Date "2024.02.01"]
[Round "8.33"]
[White "Novak, Rok"]
[Black "Atakay, Mustafa"]
[Result "1/2-1/2"]
[ECO "B12"]
[WhiteElo "1777"]
[BlackElo "1889"]
[Annotator "NA"]
[PlyCount "77"]
[EventDate "2024.01.22"]
[EventType "swiss"]
[EventCountry "SLO"]
[SourceTitle "playchess.com"]
[Source "ChessBase"]
[SourceQuality "1"]
[TimeControl "5400+30"]

1. e4 {[%emt 0:00:30]} c6 {[%emt 0:04:42]} 2. d4 {[%emt 0:00:00]} d5 {[%emt 0:00:04]} 3. e5 {[%emt 0:00:00]} Bf5 {[%emt 0:00:08]} 4. g4 {[%emt 0:00:00]} Bg6 {[%emt 0:00:33]} 5. e6 {[%emt 0:00:25]} fxe6 {[%emt 0:02:16]} 6. h4 {[%emt 0:00:14]} Qd6 {[%emt 0:10:04]} 7. h5 {[%emt 0:04:05]} Bf7 {[%emt 0:01:05]} 8. Nf3 {[%emt 0:06:50]} Nd7 {[%emt 0:00:29]} 9. Qe2 {[%emt 0:01:50]} Nh6 {[%emt 0:06:25]} 10. Bh3 {[%emt 0:11:33]} g5 {[%emt 0:19:24]} 11. Bxg5 {[%emt 0:06:16]} Rg8 {[%emt 0:06:39]} 12. Rg1 {[%emt 0:10:33]} O-O-O {[%emt 0:14:12]} 13. Nbd2 {[%emt 0:04:07]} Be8 {[%emt 0:07:08]} 14. Bh4 {[%emt 0:02:42]} c5 {[%emt 0:02:29]} 15. O-O-O {[%emt 0:15:23]} cxd4 {[%emt 0:09:44]} 16. Bg3 {[%emt 0:01:02]} Qa6 {[%emt 0:00:30]} 17. Qxa6 {[%emt 0:01:41]} bxa6 {[%emt 0:00:04]} 18. Nxd4 {[%emt 0:00:18]} Bf7 {[%emt 0:00:59]} 19. Bh2 {[%emt 0:04:39]} Bg7 {[%emt 0:03:46]} 20. N2b3 {[%emt 0:02:56]} Be5 {[%emt 0:01:25]} 21. f4 {[%emt 0:01:14]} Bd6 {[%emt 0:00:36]} 22. Rde1 {[%emt 0:01:45]} Nc5 {[%emt 0:01:03]} 23. g5 {[%emt 0:07:33]} Nxb3+ {[%emt 0:02:45]} 24. axb3 {[%emt 0:02:29]} Bc5 {[%emt 0:00:21]} 25. c3 {[%emt 0:02:31]} Bxd4 {[%emt 0:00:07]} 26. cxd4 {[%emt 0:00:08]} Nf5 {[%emt 0:00:06]} 27. Bxf5 {[%emt 0:00:23]} exf5 {[%emt 0:00:04]} 28. Rxe7 {[%emt 0:00:21]} Rd7 {[%emt 0:00:05]} 29. Rxd7 {[%emt 0:01:04]} Kxd7 {[%emt 0:00:07]} 30. h6 {[%emt 0:00:36]} Bh5 {[%emt 0:00:31]} 31. Re1 {[%emt 0:01:51]} Bf7 {[%emt 0:00:08]} 32. Re3 {[%emt 0:01:56]} Rb8 {[%emt 0:00:32]} 33. Bg3 {[%emt 0:00:36]} Re8 {[%emt 0:00:16]} 34. Rxe8 {[%emt 0:01:01]} Kxe8 {[%emt 0:00:07]} 35. Kc2 {[%emt 0:00:22]} Kd7 {[%emt 0:00:04]} 36. Kc3 {[%emt 0:02:38]} Kc6 {[%emt 0:00:12]} 37. Kb4 {[%emt 0:00:13]} Kb6 {[%emt 0:00:05]} 38. Be1 {[%emt 0:00:55]} a5+ {[%emt 0:00:33]} 39. Kc3 {[%emt 0:02:09]} 1/2-1/2

[Event "28th Hit Open-A 2024"]
[Site "Nova Gorica"]
[Date "2024.02.01"]
[Round "8.34"]
[White "Kekic, Urban"]
[Black "Guid, Taja"]
[Result "1/2-1/2"]
[ECO "A25"]
[WhiteElo "1885"]
[BlackElo "1698"]
[Annotator "NA"]
[PlyCount "65"]
[EventDate "2024.01.22"]
[EventType "swiss"]
[EventCountry "SLO"]
[SourceTitle "playchess.com"]
[Source "ChessBase"]
[SourceQuality "1"]
[TimeControl "5400+30"]

1. c4 {[%emt 0:00:05]} e5 {[%emt 0:00:05]} 2. g3 {[%emt 0:00:10]} Nc6 {[%emt 0:00:06]} 3. Bg2 {[%emt 0:00:13]} f5 {[%emt 0:00:14]} 4. Nc3 {[%emt 0:00:15]} Nf6 {[%emt 0:00:16]} 5. e3 {[%emt 0:00:15]} d5 {[%emt 0:01:15]} 6. cxd5 {[%emt 0:02:21]} Nb4 {[%emt 0:00:06]} 7. d3 {[%emt 0:00:49]} Nfxd5 {[%emt 0:01:56]} 8. Nxd5 {[%emt 0:03:20]} Nxd5 {[%emt 0:00:05]} 9. Nf3 {[%emt 0:01:18]} Bd6 {[%emt 0:05:47]} 10. O-O {[%emt 0:01:10]} c6 {[%emt 0:00:21]} 11. e4 {[%emt 0:08:42]} fxe4 {[%emt 0:04:40]} 12. dxe4 {[%emt 0:02:34]} Nf6 {[%emt 0:00:24]} 13. Qd3 {[%emt 0:06:44]} Qe7 {[%emt 0:02:29]} 14. Rd1 {[%emt 0:04:24]} Bc7 {[%emt 0:00:28]} 15. b3 {[%emt 0:01:25]} Bg4 {[%emt 0:00:44]} 16. Bb2 {[%emt 0:03:46]} O-O {[%emt 0:01:36]} 17. Re1 {[%emt 0:07:06]} Kh8 {[%emt 0:02:59]} 18. h3 {[%emt 0:04:08]} Bxf3 {[%emt 0:02:18]} 19. Bxf3 {[%emt 0:10:04]} Qe6 {[%emt 0:03:40]} 20. Bg2 {[%emt 0:01:30]} Rad8 {[%emt 0:01:15]} 21. Qe2 {[%emt 0:04:22]} Bb6 {[%emt 0:01:47]} 22. Rf1 {[%emt 0:01:21]} Bd4 {[%emt 0:02:20]} 23. Rad1 {[%emt 0:01:35]} c5 {[%emt 0:00:54]} 24. Kh2 {[%emt 0:01:05]} a6 {[%emt 0:11:07]} 25. Bc1 {[%emt 0:01:55]} b5 {[%emt 0:01:11]} 26. f4 {[%emt 0:04:02]} c4 {[%emt 0:03:36]} 27. bxc4 {[%emt 0:02:03]} Qxc4 {[%emt 0:01:28]} 28. Qxc4 {[%emt 0:04:22]} bxc4 {[%emt 0:00:01]} 29. Rfe1 {[%emt 0:06:04]} c3 {[%emt 0:07:39]} 30. Bf1 {[%emt 0:04:30]} Nxe4 {[%emt 0:11:57]} 31. Kg2 {[%emt 0:00:07]} Nf2 32. Rxd4 {[%emt 0:00:07]} exd4 {[%emt 0:01:28]} 33. Kxf2 1/2-1/2

[Event "28th Hit Open-A 2024"]
[Site "Nova Gorica"]
[Date "2024.02.01"]
[Round "8.35"]
[White "Milicevic, Zoran"]
[Black "Veselic, Maks"]
[Result "0-1"]
[ECO "C26"]
[WhiteElo "1550"]
[BlackElo "1874"]
[Annotator "NA"]
[PlyCount "58"]
[EventDate "2024.01.22"]
[EventType "swiss"]
[EventCountry "SLO"]
[SourceTitle "playchess.com"]
[Source "ChessBase"]
[SourceQuality "1"]
[TimeControl "5400+30"]

1. e4 {[%emt 0:00:05]} e5 {[%emt 0:00:08]} 2. Nf3 {[%emt 0:00:19]} Nc6 {[%emt 0:00:09]} 3. g3 {[%emt 0:00:24]} Nf6 {[%emt 0:02:24]} 4. Nc3 {[%emt 0:01:23]} Bc5 {[%emt 0:01:07]} 5. Bg2 {[%emt 0:00:29]} d6 {[%emt 0:00:55]} 6. O-O {[%emt 0:00:27]} Be6 {[%emt 0:01:38]} 7. d3 {[%emt 0:00:36]} a6 {[%emt 0:01:04]} 8. Bg5 {[%emt 0:00:17]} h6 {[%emt 0:03:58]} 9. Bxf6 {[%emt 0:00:18]} Qxf6 {[%emt 0:00:08]} 10. a3 {[%emt 0:00:53]} Nd4 {[%emt 0:02:09]} 11. Nxd4 {[%emt 0:03:37]} Bxd4 {[%emt 0:00:38]} 12. Ne2 {[%emt 0:07:15]} Ba7 {[%emt 0:03:31]} 13. c3 {[%emt 0:02:42]} h5 {[%emt 0:04:31]} 14. d4 {[%emt 0:10:06]} h4 {[%emt 0:02:47]} 15. Qd3 {[%emt 0:04:50]} O-O-O {[%emt 0:05:46]} 16. b4 {[%emt 0:01:33]} hxg3 {[%emt 0:01:27]} 17. hxg3 {[%emt 0:08:17]} Rh7 {[%emt 0:08:32]} 18. f4 {[%emt 0:01:28]} Bg4 {[%emt 0:02:49]} 19. fxe5 {[%emt 0:05:18]} Qxe5 {[%emt 0:03:37]} 20. Rxf7 {[%emt 0:10:02]} Bxe2 {[%emt 0:00:15]} 21. Qxe2 {[%emt 0:00:48]} Bxd4+ {[%emt 0:01:12]} 22. Kf1 {[%emt 0:06:44]} Bxc3 {[%emt 0:03:05]} 23. Qc4 {[%emt 0:03:59]} d5 {[%emt 0:01:12]} 24. exd5 {[%emt 0:01:03]} Bxa1 {[%emt 0:00:42]} 25. Qc2 {[%emt 0:04:48]} Rh6 {[%emt 0:02:50]} 26. Rf5 {[%emt 0:03:27]} Rf6 {[%emt 0:00:51]} 27. Rxf6 {[%emt 0:01:10]} Qxf6+ {[%emt 0:00:07]} 28. Ke2 {[%emt 0:01:26]} Re8+ {[%emt 0:00:16]} 29. Be4 {[%emt 0:01:55]} Qb2 {[%emt 0:00:27]} 0-1

[Event "28th Hit Open-A 2024"]
[Site "Nova Gorica"]
[Date "2024.02.01"]
[Round "8.36"]
[White "Gergolet, Jan"]
[Black "Budai, Federico"]
[Result "0-1"]
[ECO "B46"]
[WhiteElo "1632"]
[BlackElo "1861"]
[Annotator "NA"]
[PlyCount "84"]
[EventDate "2024.01.22"]
[EventType "swiss"]
[EventCountry "SLO"]
[SourceTitle "playchess.com"]
[Source "ChessBase"]
[SourceQuality "1"]
[TimeControl "5400+30"]

1. e4 {[%emt 0:00:03]} c5 {[%emt 0:01:38]} 2. Nf3 {[%emt 0:00:21]} e6 {[%emt 0:00:08]} 3. d4 {[%emt 0:00:06]} cxd4 {[%emt 0:00:06]} 4. Nxd4 {[%emt 0:00:01]} Nc6 {[%emt 0:00:15]} 5. Nc3 {[%emt 0:01:08]} a6 {[%emt 0:00:07]} 6. Nxc6 {[%emt 0:01:14]} bxc6 {[%emt 0:00:10]} 7. Bd3 {[%emt 0:00:24]} d5 {[%emt 0:01:11]} 8. Qe2 {[%emt 0:02:15]} Be7 {[%emt 0:04:38]} 9. e5 {[%emt 0:01:31]} Qc7 {[%emt 0:02:50]} 10. O-O {[%emt 0:03:40]} Bf8 {[%emt 0:09:21]} 11. b3 {[%emt 0:23:33]} Ne7 {[%emt 0:03:40]} 12. g4 {[%emt 0:05:58]} Ng6 {[%emt 0:09:19]} 13. f4 {[%emt 0:03:17]} Bc5+ {[%emt 0:03:40]} 14. Kh1 {[%emt 0:03:50]} O-O {[%emt 0:02:59]} 15. Na4 {[%emt 0:04:26]} Be7 {[%emt 0:00:55]} 16. Bb2 {[%emt 0:01:39]} f6 {[%emt 0:20:06]} 17. Rf3 {[%emt 0:24:48]} Bd7 {[%emt 0:13:40]} 18. Raf1 {[%emt 0:01:59]} c5 {[%emt 0:10:30]} 19. Rh3 {[%emt 0:11:27]} c4 {[%emt 0:08:48]} 20. g5 {[%emt 0:07:24]} f5 {[%emt 0:05:06]} 21. Qh5 {[%emt 0:00:34]} Kf7 {[%emt 0:00:52]} 22. Bxf5 {[%emt 0:01:16]} exf5 {[%emt 0:00:12]} 23. e6+ {[%emt 0:00:19]} Bxe6 {[%emt 0:00:27]} 24. Qxh7 {[%emt 0:00:12]} Rg8 {[%emt 0:00:24]} 25. Rh6 {[%emt 0:01:04]} Nf8 {[%emt 0:00:20]} 26. g6+ {[%emt 0:00:30]} Ke8 {[%emt 0:00:05]} 27. Bxg7 {[%emt 0:00:17]} Nxh7 {[%emt 0:01:09]} 28. gxh7 {[%emt 0:00:02]} Kd7 {[%emt 0:01:00]} 29. Be5 {[%emt 0:00:41]} Qc6 {[%emt 0:00:20]} 30. hxg8=Q {[%emt 0:00:20]} Rxg8 {[%emt 0:00:17]} 31. Bd4 {[%emt 0:00:22]} Re8 {[%emt 0:00:54]} 32. Re1 {[%emt 0:00:17]} Bb4 {[%emt 0:00:45]} 33. c3 {[%emt 0:00:28]} Bf8 {[%emt 0:00:20]} 34. Rg6 {[%emt 0:01:08]} cxb3 {[%emt 0:00:35]} 35. axb3 {[%emt 0:00:01]} Ba3 {[%emt 0:00:38]} 36. b4 {[%emt 0:00:08]} Qxa4 {[%emt 0:00:10]} 37. Bc5 {[%emt 0:00:27]} Bf7 {[%emt 0:00:34]} 38. Rd6+ {[%emt 0:00:35]} Kc7 {[%emt 0:00:33]} 39. Ra1 {[%emt 0:00:23]} Qc2 {[%emt 0:00:34]} 40. Rxa6 {[%emt 0:01:51]} Qe4+ {[%emt 0:00:14]} 41. Kg1 {[%emt 0:00:01]} Rg8+ {[%emt 0:00:13]} 42. Kf1 {[%emt 0:00:37]} Qd3+ {[%emt 0:00:07]} 0-1

[Event "28th Hit Open-A 2024"]
[Site "Nova Gorica"]
[Date "2024.02.01"]
[Round "8.37"]
[White "Horvath, Andras"]
[Black "Vicic, Mark"]
[Result "1/2-1/2"]
[ECO "B13"]
[WhiteElo "1901"]
[BlackElo "1729"]
[Annotator "NA"]
[PlyCount "73"]
[EventDate "2024.01.22"]
[EventType "swiss"]
[EventCountry "SLO"]
[SourceTitle "playchess.com"]
[Source "ChessBase"]
[SourceQuality "1"]
[TimeControl "5400+30"]

1. e4 {[%emt 0:00:04]} c6 {[%emt 0:00:24]} 2. d4 {[%emt 0:00:06]} d5 {[%emt 0:00:08]} 3. exd5 {[%emt 0:00:09]} cxd5 {[%emt 0:00:07]} 4. Bd3 {[%emt 0:00:07]} Nc6 {[%emt 0:00:07]} 5. c3 {[%emt 0:00:03]} Nf6 {[%emt 0:00:08]} 6. Bf4 {[%emt 0:00:08]} Bg4 {[%emt 0:00:16]} 7. Qb3 {[%emt 0:00:07]} Qd7 {[%emt 0:00:09]} 8. Nd2 {[%emt 0:00:10]} e6 {[%emt 0:00:13]} 9. Ngf3 {[%emt 0:00:26]} Bd6 {[%emt 0:00:16]} 10. Bxd6 {[%emt 0:00:10]} Qxd6 {[%emt 0:00:03]} 11. O-O {[%emt 0:00:15]} O-O {[%emt 0:00:15]} 12. Rfe1 {[%emt 0:00:11]} Qc7 {[%emt 0:06:04]} 13. Ne5 {[%emt 0:14:39]} Bh5 {[%emt 0:01:18]} 14. h3 {[%emt 0:06:44]} Nxe5 {[%emt 0:03:09]} 15. dxe5 {[%emt 0:01:08]} Nd7 {[%emt 0:00:12]} 16. Qb4 {[%emt 0:14:55]} Nxe5 {[%emt 0:15:44]} 17. Bxh7+ {[%emt 0:08:59]} Kxh7 {[%emt 0:00:13]} 18. Qh4 {[%emt 0:00:08]} g6 {[%emt 0:00:57]} 19. g4 {[%emt 0:00:41]} Nxg4 {[%emt 0:09:38]} 20. hxg4 {[%emt 0:00:57]} Qf4 {[%emt 0:01:37]} 21. f3 {[%emt 0:02:27]} Qxd2 {[%emt 0:02:04]} 22. gxh5 {[%emt 0:00:10]} gxh5 {[%emt 0:02:26]} 23. Qxh5+ {[%emt 0:00:33]} Qh6 {[%emt 0:00:37]} 24. Qxh6+ {[%emt 0:00:47]} Kxh6 {[%emt 0:00:02]} 25. Kf2 {[%emt 0:00:59]} Kg6 {[%emt 0:05:29]} 26. Ke3 {[%emt 0:00:58]} Kf6 {[%emt 0:00:49]} 27. Rad1 {[%emt 0:01:12]} Rac8 {[%emt 0:01:23]} 28. Rd4 {[%emt 0:00:42]} Rh8 {[%emt 0:02:25]} 29. Re2 {[%emt 0:01:02]} Rh1 {[%emt 0:02:18]} 30. Rg2 {[%emt 0:02:40]} Re1+ {[%emt 0:03:26]} 31. Kd2 {[%emt 0:00:54]} Rf1 {[%emt 0:03:35]} 32. Rf4+ {[%emt 0:00:13]} Ke7 {[%emt 0:00:10]} 33. Ke2 {[%emt 0:01:20]} Ra1 {[%emt 0:02:26]} 34. a3 {[%emt 0:00:26]} Rh8 {[%emt 0:01:26]} 35. Rg7 {[%emt 0:00:28]} Rh2+ {[%emt 0:03:51]} 36. Ke3 {[%emt 0:01:01]} Re1+ {[%emt 0:03:40]} 37. Kd3 {[%emt 0:01:44]} 1/2-1/2

[Event "28th Hit Open-A 2024"]
[Site "Nova Gorica"]
[Date "2024.02.01"]
[Round "8.38"]
[White "Cokan, Mirko"]
[Black "Hozjan, Erik"]
[Result "0-1"]
[ECO "B20"]
[WhiteElo "1614"]
[BlackElo "1897"]
[Annotator "NA"]
[PlyCount "80"]
[EventDate "2024.01.22"]
[EventType "swiss"]
[EventCountry "SLO"]
[SourceTitle "playchess.com"]
[Source "ChessBase"]
[SourceQuality "1"]
[TimeControl "5400+30"]

1. e4 {[%emt 0:00:17]} c5 {[%emt 0:00:23]} 2. b4 {[%emt 0:01:22]} cxb4 {[%emt 0:03:59]} 3. d4 {[%emt 0:00:20]} Nf6 {[%emt 0:00:14]} 4. e5 {[%emt 0:03:06]} Nd5 {[%emt 0:00:07]} 5. Bc4 {[%emt 0:01:02]} Nb6 {[%emt 0:01:02]} 6. Bb3 {[%emt 0:00:40]} Nc6 {[%emt 0:00:38]} 7. Nf3 {[%emt 0:04:35]} d5 {[%emt 0:02:55]} 8. h3 {[%emt 0:02:44]} Bf5 {[%emt 0:00:49]} 9. Be3 {[%emt 0:04:57]} e6 {[%emt 0:00:38]} 10. a4 {[%emt 0:06:23]} Na5 {[%emt 0:03:17]} 11. Nbd2 {[%emt 0:01:52]} Rc8 {[%emt 0:00:07]} 12. Rc1 {[%emt 0:01:32]} Be7 {[%emt 0:01:39]} 13. g4 {[%emt 0:05:08]} Nxb3 {[%emt 0:03:13]} 14. cxb3 {[%emt 0:00:57]} Bd3 {[%emt 0:00:07]} 15. Ng1 {[%emt 0:03:27]} Bg5 {[%emt 0:03:48]} 16. Rxc8 {[%emt 0:03:16]} Nxc8 {[%emt 0:00:05]} 17. Ndf3 {[%emt 0:01:44]} Bxe3 {[%emt 0:00:18]} 18. Qxd3 {[%emt 0:00:34]} Bc1 {[%emt 0:00:50]} 19. Ne2 {[%emt 0:01:01]} Ba3 {[%emt 0:00:22]} 20. O-O {[%emt 0:03:51]} h5 {[%emt 0:00:21]} 21. g5 {[%emt 0:00:14]} Ne7 {[%emt 0:00:24]} 22. Nh4 {[%emt 0:00:46]} Nc6 {[%emt 0:04:13]} 23. f4 {[%emt 0:01:33]} Kd7 {[%emt 0:00:51]} 24. Qe3 {[%emt 0:02:36]} g6 {[%emt 0:04:53]} 25. Qd3 {[%emt 0:01:53]} a6 {[%emt 0:00:50]} 26. Nf3 {[%emt 0:00:28]} Qb6 {[%emt 0:00:28]} 27. Kg2 {[%emt 0:00:59]} Rc8 {[%emt 0:00:06]} 28. Nd2 {[%emt 0:00:55]} Bb2 {[%emt 0:01:06]} 29. Nf3 {[%emt 0:01:33]} Ne7 {[%emt 0:00:16]} 30. Nh4 {[%emt 0:01:29]} Qc6 {[%emt 0:00:48]} 31. Rf2 {[%emt 0:02:23]} Qc2 {[%emt 0:00:24]} 32. Qf3 {[%emt 0:00:38]} Qd1 {[%emt 0:03:15]} 33. Rf1 {[%emt 0:00:37]} Qd2 {[%emt 0:00:15]} 34. Rf2 {[%emt 0:00:03]} Rc2 {[%emt 0:00:23]} 35. Kf1 {[%emt 0:02:25]} Bxd4 {[%emt 0:02:53]} 36. Nxd4 {[%emt 0:01:48]} Rc1+ {[%emt 0:00:00]} 37. Kg2 {[%emt 0:00:04]} Qxd4 {[%emt 0:00:00]} 38. Qe2 {[%emt 0:01:34]} Rc3 {[%emt 0:00:32]} 39. Rf3 {[%emt 0:01:20]} Qe4 {[%emt 0:00:37]} 40. Kf2 {[%emt 0:04:57]} Rc2 {[%emt 0:00:14]} 0-1

[Event "28th Hit Open-A 2024"]
[Site "Nova Gorica"]
[Date "2024.02.01"]
[Round "8.39"]
[White "Cortese, Lina"]
[Black "Racnik, Tone"]
[Result "0-1"]
[ECO "E67"]
[WhiteElo "1582"]
[BlackElo "1849"]
[Annotator "NA"]
[PlyCount "108"]
[EventDate "2024.01.22"]
[EventType "swiss"]
[EventCountry "SLO"]
[SourceTitle "playchess.com"]
[Source "ChessBase"]
[SourceQuality "1"]
[TimeControl "5400+30"]

1. c4 {[%emt 0:00:02]} Nf6 {[%emt 0:00:10]} 2. Nc3 {[%emt 0:00:20]} g6 {[%emt 0:00:09]} 3. g3 {[%emt 0:00:13]} Bg7 {[%emt 0:00:14]} 4. Bg2 {[%emt 0:00:07]} O-O {[%emt 0:00:13]} 5. d4 {[%emt 0:00:16]} c6 {[%emt 0:00:46]} 6. e4 {[%emt 0:00:59]} d6 {[%emt 0:01:08]} 7. Nf3 {[%emt 0:00:36]} Nbd7 {[%emt 0:00:46]} 8. O-O {[%emt 0:00:17]} c5 {[%emt 0:05:06]} 9. dxc5 {[%emt 0:01:06]} Nxc5 {[%emt 0:00:13]} 10. Qc2 {[%emt 0:01:06]} Be6 {[%emt 0:02:37]} 11. b4 {[%emt 0:01:42]} Ncxe4 {[%emt 0:05:29]} 12. Nxe4 {[%emt 0:00:34]} Nxe4 {[%emt 0:00:07]} 13. Rb1 {[%emt 0:00:45]} Nc3 {[%emt 0:04:17]} 14. Rb3 {[%emt 0:02:52]} Bxc4 {[%emt 0:17:43]} 15. Rxc3 {[%emt 0:02:02]} Bxf1 {[%emt 0:00:29]} 16. Kxf1 {[%emt 0:00:15]} Bxc3 {[%emt 0:00:13]} 17. Qxc3 {[%emt 0:00:37]} Rc8 {[%emt 0:02:43]} 18. Qb2 {[%emt 0:00:21]} Qc7 {[%emt 0:03:15]} 19. Bh6 {[%emt 0:00:30]} Qc3 {[%emt 0:00:08]} 20. Qxc3 {[%emt 0:01:59]} Rxc3 {[%emt 0:01:06]} 21. Bxf8 {[%emt 0:00:13]} Kxf8 {[%emt 0:00:06]} 22. Ne1 {[%emt 0:02:39]} b6 {[%emt 0:00:43]} 23. Bd5 {[%emt 0:01:50]} e6 {[%emt 0:03:28]} 24. Bb3 {[%emt 0:00:25]} d5 {[%emt 0:00:55]} 25. Ke2 {[%emt 0:00:19]} Ke7 {[%emt 0:00:44]} 26. Kd2 {[%emt 0:00:28]} d4 {[%emt 0:00:36]} 27. f4 {[%emt 0:01:19]} f6 {[%emt 0:01:44]} 28. Nd3 {[%emt 0:04:35]} h5 {[%emt 0:04:01]} 29. b5 {[%emt 0:04:57]} Kd6 {[%emt 0:03:32]} 30. Ke2 {[%emt 0:00:51]} e5 {[%emt 0:00:54]} 31. fxe5+ {[%emt 0:04:15]} fxe5 {[%emt 0:00:07]} 32. Kd2 {[%emt 0:01:18]} g5 {[%emt 0:03:37]} 33. Nf2 {[%emt 0:00:59]} Re3 {[%emt 0:01:21]} 34. Bc2 {[%emt 0:00:32]} Kd5 {[%emt 0:03:00]} 35. Bg6 {[%emt 0:05:23]} h4 {[%emt 0:01:06]} 36. gxh4 {[%emt 0:01:07]} gxh4 {[%emt 0:00:08]} 37. h3 {[%emt 0:03:56]} Kc5 {[%emt 0:03:40]} 38. Bd3 {[%emt 0:02:10]} Kb4 {[%emt 0:03:35]} 39. Bf1 {[%emt 0:04:34]} Ka3 {[%emt 0:01:41]} 40. Bc4 {[%emt 0:05:05]} Rg3 {[%emt 0:03:16]} 41. Bd5 {[%emt 0:00:40]} Re3 {[%emt 0:01:58]} 42. Be6 {[%emt 0:00:46]} Kb4 {[%emt 0:00:19]} 43. Bd7 {[%emt 0:03:45]} Kc5 {[%emt 0:00:34]} 44. Nd3+ {[%emt 0:01:57]} Kd6 {[%emt 0:00:11]} 45. Bg4 {[%emt 0:01:53]} e4 {[%emt 0:00:46]} 46. Nb4 {[%emt 0:01:59]} Kc5 {[%emt 0:01:50]} 47. Nc2 {[%emt 0:05:02]} Rg3 {[%emt 0:00:06]} 48. Bd7 {[%emt 0:00:41]} Rg2+ {[%emt 0:00:48]} 49. Kd1 {[%emt 0:01:42]} d3 {[%emt 0:01:12]} 50. Ne3 {[%emt 0:00:44]} Rxa2 {[%emt 0:00:18]} 51. Nf5 {[%emt 0:00:37]} Kb4 {[%emt 0:02:11]} 52. Ne3 {[%emt 0:06:19]} Kc3 {[%emt 0:00:58]} 53. Nd5+ {[%emt 0:00:40]} Kd4 {[%emt 0:00:24]} 54. Nf4 {[%emt 0:02:01]} Ra1+ {[%emt 0:00:44]} 0-1

[Event "28th Hit Open-A 2024"]
[Site "Nova Gorica"]
[Date "2024.02.01"]
[Round "8.40"]
[White "Pagano, Sergio"]
[Black "Petrovcic, Cvetko"]
[Result "1-0"]
[ECO "A80"]
[WhiteElo "1821"]
[BlackElo "1611"]
[Annotator "NA"]
[PlyCount "54"]
[EventDate "2024.01.22"]
[EventType "swiss"]
[EventCountry "SLO"]
[SourceTitle "playchess.com"]
[Source "ChessBase"]
[SourceQuality "1"]
[TimeControl "5400+30"]

1. d4 {[%emt 0:00:04]} f5 {[%emt 0:04:23]} 2. Nf3 {[%emt 0:01:32]} e6 {[%emt 0:00:02]} 3. d5 {[%emt 0:01:09]} Bd6 {[%emt 0:00:33]} 4. b3 {[%emt 0:01:42]} Nf6 {[%emt 0:00:07]} 5. dxe6 {[%emt 0:03:21]} dxe6 {[%emt 0:00:21]} 6. Nd4 {[%emt 0:02:08]} O-O {[%emt 0:00:15]} 7. Ba3 {[%emt 0:05:09]} c5 {[%emt 0:00:47]} 8. Nb5 {[%emt 0:00:51]} Qa5+ {[%emt 0:01:35]} 9. Qd2 {[%emt 0:03:25]} Qxb5 {[%emt 0:01:07]} 10. Qxd6 {[%emt 0:00:22]} Ne4 {[%emt 0:00:12]} 11. Qd3 {[%emt 0:00:58]} Nc6 {[%emt 0:00:24]} 12. Qxb5 {[%emt 0:00:21]} Nd4 {[%emt 0:00:31]} 13. Qd3 {[%emt 0:01:17]} b6 {[%emt 0:00:38]} 14. e3 {[%emt 0:03:12]} Nc6 {[%emt 0:01:20]} 15. f3 {[%emt 0:00:47]} Nf6 {[%emt 0:00:14]} 16. c4 {[%emt 0:01:55]} Bb7 {[%emt 0:00:02]} 17. Be2 {[%emt 0:01:19]} Rad8 {[%emt 0:00:05]} 18. Qc3 {[%emt 0:03:40]} f4 {[%emt 0:00:15]} 19. Nd2 {[%emt 0:03:07]} fxe3 {[%emt 0:00:18]} 20. Qxe3 {[%emt 0:00:19]} Nd4 {[%emt 0:00:02]} 21. O-O-O {[%emt 0:00:34]} a5 {[%emt 0:00:17]} 22. Bb2 {[%emt 0:01:19]} e5 {[%emt 0:00:23]} 23. Bd3 {[%emt 0:01:57]} Rfe8 {[%emt 0:00:19]} 24. Ne4 {[%emt 0:01:49]} a4 {[%emt 0:00:26]} 25. Nxf6+ {[%emt 0:00:52]} gxf6 {[%emt 0:00:14]} 26. Bxd4 {[%emt 0:00:39]} Rxd4 {[%emt 0:00:48]} 27. Qh6 {[%emt 0:00:28]} e4 {[%emt 0:01:02]} 1-0

[Event "28th Hit Open-A 2024"]
[Site "Nova Gorica"]
[Date "2024.02.01"]
[Round "8.41"]
[White "Beber, Anja"]
[Black "Gricnik, Tine"]
[Result "1/2-1/2"]
[ECO "D05"]
[WhiteElo "1606"]
[BlackElo "1758"]
[Annotator "NA"]
[PlyCount "51"]
[EventDate "2024.01.22"]
[EventType "swiss"]
[EventCountry "SLO"]
[SourceTitle "playchess.com"]
[Source "ChessBase"]
[SourceQuality "1"]
[TimeControl "5400+30"]

1. Nf3 {[%emt 0:00:06]} d5 {[%emt 0:00:10]} 2. d4 {[%emt 0:00:08]} c6 {[%emt 0:00:12]} 3. e3 {[%emt 0:01:08]} Nf6 {[%emt 0:00:50]} 4. Bd3 {[%emt 0:01:17]} e6 {[%emt 0:02:24]} 5. O-O {[%emt 0:00:29]} Bd6 {[%emt 0:00:39]} 6. b3 {[%emt 0:01:19]} Nbd7 {[%emt 0:00:44]} 7. Bb2 {[%emt 0:00:31]} Qc7 {[%emt 0:00:58]} 8. c4 {[%emt 0:03:35]} e5 {[%emt 0:08:27]} 9. c5 {[%emt 0:00:52]} e4 {[%emt 0:01:17]} 10. cxd6 {[%emt 0:01:56]} Qxd6 {[%emt 0:00:09]} 11. Ba3 {[%emt 0:00:51]} Qc7 {[%emt 0:00:26]} 12. Bc2 {[%emt 0:02:44]} exf3 {[%emt 0:00:12]} 13. Qxf3 {[%emt 0:00:10]} Nb6 {[%emt 0:05:01]} 14. h3 {[%emt 0:00:35]} Be6 {[%emt 0:01:30]} 15. Nd2 {[%emt 0:02:38]} Nc8 {[%emt 0:08:33]} 16. e4 {[%emt 0:16:20]} dxe4 {[%emt 0:02:35]} 17. Nxe4 {[%emt 0:00:14]} Nxe4 {[%emt 0:00:12]} 18. Bxe4 {[%emt 0:00:39]} Ne7 {[%emt 0:01:16]} 19. Rac1 {[%emt 0:00:18]} Qd7 {[%emt 0:03:40]} 20. Rfd1 {[%emt 0:01:56]} O-O {[%emt 0:08:37]} 21. Qf4 {[%emt 0:06:34]} Rfe8 {[%emt 0:01:27]} 22. Bxe7 {[%emt 0:12:05]} Rxe7 {[%emt 0:01:22]} 23. Qh4 {[%emt 0:01:10]} h6 {[%emt 0:02:08]} 24. Rc3 {[%emt 0:01:45]} Rae8 {[%emt 0:04:40]} 25. Re3 {[%emt 0:09:37]} Bd5 {[%emt 0:06:36]} 26. Rde1 {[%emt 0:04:40]} 1/2-1/2